bitfinex/quotes_SOLUSD_20241028
["timestamp","ask_amount","ask_price","bid_price","bid_amount"]
[1730099989177,22.25072392,176.42,176.37,22.25072392]
[1730099989382,22.25072392,176.43,176.38,22.25072392]
[1730099990195,22.25072392,176.43,176.38,27.91992392]
[1730099990397,22.25072392,176.42,176.38,5.6692]
[1730099990599,5.6677,176.44,176.38,5.6692]
[1730099990600,13.90616264,176.43,176.38,5.6692]
[1730099990778,13.90616264,176.43,176.38,19.8431]
[1730099991598,13.90616264,176.43,176.38,33.74926264]
[1730099991770,13.90616264,176.43,176.38,14.1739]
[1730099991971,13.90616264,176.42,176.38,14.1739]
[1730099992894,13.90616264,176.41,176.38,14.1739]
[1730099993089,13.90616264,176.39,176.31,15.2966]
[1730099993407,13.90616264,176.38,176.33,13.90616264]
[1730099993699,13.90616264,176.39,176.33,28.08386264]
[1730099994115,13.90616264,176.39,176.33,33.75496264]
[1730099994282,13.90616264,176.38,176.33,19.8488]
[1730099994782,13.90616264,176.38,176.33,33.75496264]
[1730099996095,13.90616264,176.39,176.33,33.75496264]
[1730099996609,13.90616264,176.38,176.33,33.75496264]
[1730099996778,13.90616264,176.38,176.33,19.8488]
[1730099996982,5.6676,176.44,176.33,19.8488]
[1730099996983,13.90616264,176.37,176.33,19.8488]
[1730099997679,13.90616264,176.36,176.33,19.8488]
[1730099998199,13.90616264,176.36,176.33,14.1777]
[1730099998705,13.90616264,176.37,176.33,14.1777]
[1730099999175,13.90616264,176.35,176.33,14.1777]
[1730099999595,13.90616264,176.34,176.33,14.1777]
[1730099999908,13.90616264,176.34,176.29,13.90616264]
[1730099999909,14.03165264,176.34,176.28,13.90616264]
[1730100000076,13.90616264,176.32,176.29,1.41983511]
[1730100000281,13.90616264,176.31,176.28,1.42002705]
[1730100000495,13.90616264,176.31,176.27,5.6731]
[1730100000701,0.12549,176.34,176.27,5.6731]
[1730100000702,13.90616264,176.33,176.28,1.42004972]
[1730100001003,13.90616264,176.33,176.28,13.90616264]
[1730100001195,6.6659,176.39,176.3,5.6721]
[1730100001499,13.90616264,176.39,176.33,13.90616264]
[1730100001688,13.90616264,176.4,176.34,13.90616264]
[1730100001888,13.90616264,176.39,176.33,13.90616264]
[1730100002608,13.90616264,176.39,176.34,5.6708]
[1730100002801,13.90616264,176.36,176.31,13.90616264]
[1730100003010,6.2663,176.44,176.33,13.90616264]
[1730100003181,13.90616264,176.4,176.35,13.90616264]
[1730100003382,6.2663,176.44,176.31,23.876884]
[1730100003609,16.3883,176.46,176.33,29.901484]
[1730100003780,6.2588443,176.47,176.33,30.001484]
[1730100003977,13.90616264,176.46,176.4,13.90616264]
[1730100004195,13.90616264,176.45,176.39,13.90616264]
[1730100004589,13.90616264,176.45,176.4,5.6689]
[1730100004777,13.90616264,176.44,176.4,5.6689]
[1730100004983,13.90616264,176.43,176.4,14.1723]
[1730100005603,13.90616264,176.42,176.4,14.1723]
[1730100006000,13.90616264,176.42,176.36,13.90616264]
[1730100006512,13.90616264,176.4,176.35,19.57666264]
[1730100006890,13.90616264,176.42,176.36,13.90616264]
[1730100007989,13.90616264,176.42,176.37,5.6698]
[1730100008193,13.90616264,176.43,176.38,13.90616264]
[1730100008709,13.90616264,176.39,176.34,20.9724]
[1730100008901,13.90616264,176.39,176.34,34.87856264]
[1730100009081,13.90616264,176.36,176.31,13.90616264]
[1730100009282,13.90616264,176.36,176.32,1.41971652]
[1730100009482,13.90616264,176.33,176.3,15.8009]
[1730100009701,13.90616264,176.34,176.31,1.41982059]
[1730100009908,13.90616264,176.33,176.29,5.6724]
[1730100010102,13.90616264,176.33,176.3,1.41985895]
[1730100010409,13.90616264,176.33,176.31,1.41985895]
[1730100010600,13.90616264,176.33,176.29,19.8535]
[1730100010911,13.90616264,176.33,176.3,1.41988286]
[1730100011212,13.90616264,176.33,176.29,19.8535]
[1730100011395,13.90616264,176.32,176.29,19.8535]
[1730100012214,13.90616264,176.32,176.29,14.1811]
[1730100012800,0.35098,176.39,176.29,14.1811]
[1730100012801,0.12549,176.39,176.31,13.90616264]
[1730100013004,0.12549,176.39,176.29,14.1811]
[1730100013005,0.12549,176.37,176.33,13.90616264]
[1730100013888,0.12549,176.38,176.33,13.90616264]
[1730100014302,0.12549,176.38,176.34,5.6708]
[1730100014711,13.90616264,176.38,176.34,5.6708]
[1730100014894,13.90616264,176.37,176.34,5.6708]
[1730100015091,13.90616264,176.35,176.29,13.90616264]
[1730100015402,13.90616264,176.34,176.3,5.6721]
[1730100016087,13.90616264,176.32,176.3,5.6721]
[1730100016392,13.90616264,176.31,176.26,7.09336355]
[1730100016593,13.90616264,176.27,176.26,19.8569]
[1730100016808,13.90616264,176.28,176.26,21.27704683]
[1730100016998,13.90616264,176.28,176.26,19.8569]
[1730100017392,13.90616264,176.29,176.26,19.8569]
[1730100018106,13.90616264,176.27,176.26,19.8569]
[1730100018305,13.90616264,176.27,176.23,5.6744]
[1730100018490,22.29301688,176.25,176.23,5.6744]
[1730100018694,22.29301688,176.24,176.23,21.28063312]
[1730100019399,22.29301688,176.25,176.23,19.8604]
[1730100019892,22.29301688,176.25,176.23,14.186]
[1730100020309,22.29301688,176.26,176.23,14.186]
[1730100020517,22.29301688,176.27,176.23,14.186]
[1730100020709,22.29301688,176.28,176.23,36.47901688]
[1730100021191,22.29301688,176.27,176.23,14.186]
[1730100021396,22.29301688,176.25,176.23,14.186]
[1730100022219,22.29301688,176.31,176.23,14.186]
[1730100022220,22.29301688,176.24,176.23,14.186]
[1730100023207,22.29301688,176.24,176.19,5.6756]
[1730100023420,22.29301688,176.24,176.19,7.09605839]
[1730100023845,22.29301688,176.23,176.19,7.09605839]
[1730100024118,5.6733,176.27,176.19,14.1892]
[1730100024119,22.29301688,176.21,176.19,14.1892]
[1730100024324,22.29301688,176.2,176.19,14.1892]
[1730100025205,22.29301688,176.2,176.13,5.6776]
[1730100025206,0.25098,176.19,176.13,5.6776]
[1730100025412,22.29301688,176.17,176.13,7.09835356]
[1730100025607,22.29301688,176.16,176.13,21.29235356]
[1730100025803,22.29301688,176.16,176.13,19.8716]
[1730100026004,22.29301688,176.14,176.13,14.194]
[1730100026220,22.29301688,176.16,176.13,19.8716]
[1730100026523,22.54399688,176.16,176.13,19.8716]
[1730100026900,22.54399688,176.16,176.11,5.6779]
[1730100026901,22.29301688,176.14,176.11,5.6779]
[1730100027102,22.29301688,176.12,176.07,22.29301688]
[1730100027721,22.29301688,176.13,176.08,22.29301688]
[1730100028404,22.54399688,176.16,176.11,22.29301688]
[1730100030329,22.29301688,176.15,176.11,14.1949]
[1730100030705,22.54399688,176.16,176.11,36.48791688]
[1730100031110,22.54399688,176.14,176.11,14.1949]
[1730100031626,22.29301688,176.13,176.11,14.1949]
[1730100033105,22.54399688,176.14,176.11,14.1949]
[1730100033304,0.25098,176.14,176.11,14.1949]
[1730100033616,22.29301688,176.18,176.12,22.29301688]
[1730100033833,22.29301688,176.19,176.14,22.29301688]
[1730100034327,15.1374,176.21,176.11,14.1949]
[1730100034328,22.29301688,176.18,176.13,22.29301688]
[1730100034636,22.29301688,176.18,176.14,5.6773]
[1730100034926,22.29301688,176.18,176.14,19.8705]
[1730100035711,22.29301688,176.17,176.14,19.8705]
[1730100036034,22.41850688,176.19,176.14,42.16351688]
[1730100036324,0.12549,176.18,176.14,42.16351688]
[1730100037416,0.12549,176.18,176.12,22.29301688]
[1730100037417,22.41850688,176.17,176.12,22.29301688]
[1730100037729,0.25098,176.15,176.1,22.29301688]
[1730100037923,0.25098,176.15,176.11,22.29301688]
[1730100040413,0.25098,176.15,176.1,22.29301688]
[1730100040818,0.25098,176.15,176.12,5.6779]
[1730100041029,0.25098,176.15,176.12,19.8727]
[1730100041222,0.25098,176.16,176.12,19.8727]
[1730100041419,22.29301688,176.17,176.12,19.8727]
[1730100041618,22.29301688,176.2,176.14,22.29301688]
[1730100041826,22.29301688,176.2,176.15,22.29301688]
[1730100042537,22.29301688,176.23,176.17,22.29301688]
[1730100042710,22.29301688,176.22,176.17,22.29301688]
[1730100042908,22.29301688,176.22,176.18,5.676]
[1730100043327,0.1,176.33,176.21,22.29301688]
[1730100043529,0.1,176.33,176.18,26.4576]
[1730100043530,22.29301688,176.27,176.22,22.29301688]
[1730100043832,22.29301688,176.27,176.21,22.29301688]
[1730100044042,22.29301688,176.27,176.22,22.29301688]
[1730100044326,22.29301688,176.27,176.23,5.6744]
[1730100044729,22.41850688,176.26,176.23,19.8604]
[1730100045039,22.29301688,176.24,176.23,19.8604]
[1730100046356,0.25098,176.23,176.2,5.6753]
[1730100046632,0.12549,176.23,176.2,5.6753]
[1730100046824,0.12549,176.22,176.2,19.8637]
[1730100047639,0.25098,176.23,176.2,19.8637]
[1730100048129,22.77191062,176.23,176.2,19.8637]
[1730100048343,22.77191062,176.23,176.2,14.1884]
[1730100049818,22.77191062,176.24,176.2,14.1884]
[1730100050028,22.52093062,176.28,176.23,22.52093062]
[1730100050345,22.52093062,176.3,176.26,5.6734]
[1730100050542,14.06714857,176.3,176.26,5.6734]
[1730100050748,14.06714857,176.29,176.26,5.6734]
[1730100051420,0.25098,176.28,176.26,14.1835]
[1730100051758,0.25098,176.27,176.23,28.25294857]
[1730100052039,0.25098,176.25,176.23,14.1858]
[1730100052244,14.31812857,176.25,176.21,5.6748]
[1730100052538,22.77363904,176.23,176.21,5.6748]
[1730100052947,0.25098,176.23,176.21,5.6748]
[1730100053344,0.25098,176.23,176.2,14.1881]
[1730100053638,0.12549,176.23,176.2,36.71075904]
[1730100053845,22.52265904,176.27,176.22,22.52265904]
[1730100054044,22.77363904,176.26,176.21,22.52265904]
[1730100054755,22.77363904,176.26,176.22,5.6747]
[1730100055228,22.77363904,176.26,176.22,19.70951472]
[1730100056134,22.77363904,176.26,176.22,14.1868]
[1730100056641,0.25098,176.26,176.22,14.1868]
[1730100057427,0.25098,176.26,176.22,36.70945904]
[1730100057629,22.77363904,176.27,176.22,36.70945904]
[1730100058446,0.25098,176.27,176.23,22.52265904]
[1730100058646,70.1,176.34,176.22,19.8615]
[1730100058647,5.6705,176.35,176.26,22.52265904]
[1730100058824,22.52265904,176.33,176.28,22.52265904]
[1730100059031,22.52265904,176.34,176.28,22.52265904]
[1730100059847,22.52265904,176.33,176.28,22.52265904]
[1730100060155,22.52265904,176.33,176.29,5.6724]
[1730100060359,22.77363904,176.32,176.29,5.6724]
[1730100061329,0.12549,176.32,176.3,22.52265904]
[1730100061539,22.52265904,176.37,176.31,22.52265904]
[1730100061750,22.52265904,176.36,176.31,22.52265904]
[1730100061945,22.52265904,176.35,176.29,22.52265904]
[1730100062550,22.52265904,176.35,176.3,5.6721]
[1730100062741,0.25098,176.34,176.3,5.6721]
[1730100062940,0.25098,176.34,176.3,19.8524]
[1730100063653,22.77363904,176.35,176.3,22.52265904]
[1730100063952,0.25098,176.33,176.28,22.52265904]
[1730100064131,0.25098,176.33,176.3,22.52265904]
[1730100064532,22.52265904,176.35,176.31,5.6718]
[1730100064533,0.25098,176.34,176.31,5.6718]
[1730100066379,0.25098,176.35,176.31,42.37395904]
[1730100066561,22.77363904,176.35,176.31,19.8513]
[1730100066859,0.25098,176.33,176.31,19.8513]
[1730100067043,22.52265904,176.32,176.26,14.1829]
[1730100067246,22.77363904,176.31,176.26,42.37895904]
[1730100068157,22.77363904,176.28,176.26,14.1829]
[1730100068366,22.77363904,176.27,176.23,19.86]
[1730100069241,0.25098,176.27,176.23,19.86]
[1730100069455,0.12549,176.28,176.23,42.38265904]
[1730100069650,0.25098,176.29,176.25,22.52265904]
[1730100069850,22.77363904,176.3,176.25,22.52265904]
[1730100070139,0.25098,176.32,176.28,22.52265904]
[1730100070344,22.52265904,176.35,176.3,22.52265904]
[1730100070546,6.6629,176.38,176.3,22.52265904]
[1730100070547,22.52265904,176.36,176.3,22.52265904]
[1730100070760,22.52265904,176.36,176.31,5.6718]
[1730100071661,22.52265904,176.35,176.31,5.6718]
[1730100072537,0.25098,176.34,176.31,5.6718]
[1730100072742,22.52265904,176.35,176.31,42.37395904]
[1730100072743,0.25098,176.35,176.31,42.37395904]
[1730100073049,0.25098,176.36,176.32,22.52265904]
[1730100073253,22.52265904,176.37,176.32,22.52265904]
[1730100073559,6.2478,176.42,176.34,22.52265904]
[1730100073560,22.52265904,176.39,176.34,22.52265904]
[1730100073764,22.52265904,176.39,176.31,19.8513]
[1730100073765,22.52265904,176.39,176.33,22.52265904]
[1730100073931,22.52265904,176.4,176.34,22.52265904]
[1730100074135,42.52265904,176.39,176.33,22.52265904]
[1730100074555,0.25098,176.38,176.33,14.05256915]
[1730100075164,14.30354915,176.38,176.33,14.05256915]
[1730100075368,14.05256915,176.35,176.29,33.90606915]
[1730100075544,14.30354915,176.34,176.29,19.8535]
[1730100075859,0.25098,176.34,176.29,33.90606915]
[1730100076173,14.30354915,176.34,176.29,33.90606915]
[1730100077038,14.30354915,176.34,176.29,19.8535]
[1730100077239,14.30354915,176.34,176.29,33.90606915]
[1730100077564,0.25098,176.32,176.29,19.8535]
[1730100078373,0.25098,176.33,176.29,19.8535]
[1730100078739,14.30354915,176.33,176.29,19.8535]
[1730100078937,0.25098,176.3,176.26,14.1834]
[1730100079360,0.25098,176.3,176.26,28.23596915]
[1730100079945,0.25098,176.3,176.26,19.8568]
[1730100080146,0.25098,176.3,176.26,33.90936915]
[1730100080860,0.25098,176.31,176.26,33.90936915]
[1730100081057,14.30354915,176.31,176.26,14.1834]
[1730100081255,19.97544915,176.31,176.26,14.1834]
[1730100081572,0.25098,176.29,176.26,14.1834]
[1730100081939,0.25098,176.3,176.26,28.23596915]
[1730100082969,19.72306915,176.35,176.29,14.05256915]
[1730100083265,19.72306915,176.35,176.3,14.05256915]
[1730100083468,14.05256915,176.35,176.29,14.05256915]
[1730100083676,14.05256915,176.36,176.3,14.05256915]
[1730100084858,14.05256915,176.36,176.31,5.6718]
[1730100085269,0.25098,176.35,176.31,5.6718]
[1730100086472,0.25098,176.35,176.3,49.36056915]
[1730100086664,14.30354915,176.35,176.3,35.308]
[1730100086985,19.97414915,176.35,176.3,35.308]
[1730100087186,19.97414915,176.35,176.3,49.36056915]
[1730100088076,19.97414915,176.35,176.3,33.90456915]
[1730100089656,19.97414915,176.35,176.29,14.05256915]
[1730100090955,0.25098,176.33,176.3,5.6721]
[1730100091892,20.0,176.37,176.32,14.05256915]
[1730100092192,14.05256915,176.39,176.33,14.05256915]
[1730100092582,14.05256915,176.38,176.33,14.05256915]
[1730100093260,0.25098,176.37,176.34,5.6708]
[1730100093883,0.25098,176.38,176.34,5.6708]
[1730100094071,14.30354915,176.38,176.34,5.6708]
[1730100094271,14.30354915,176.38,176.33,5.6711]
[1730100094871,0.25098,176.38,176.34,14.05313478]
[1730100095481,0.25098,176.38,176.34,19.72373478]
[1730100095687,0.25098,176.38,176.34,5.6706]
[1730100096591,0.25098,176.38,176.34,19.72373478]
[1730100096789,22.2644,176.44,176.37,14.05313478]
[1730100097095,14.05313478,176.42,176.36,14.05313478]
[1730100097283,22.2644,176.44,176.35,14.05313478]
[1730100097284,14.05313478,176.41,176.35,14.05313478]
[1730100098172,0.25098,176.4,176.36,14.05313478]
[1730100098486,0.25098,176.41,176.36,14.05313478]
[1730100098795,0.25098,176.41,176.37,5.6698]
[1730100099798,0.25098,176.41,176.37,19.72293478]
[1730100100100,0.25098,176.41,176.37,33.89763478]
[1730100100272,0.25098,176.41,176.37,19.8445]
[1730100101101,14.05313478,176.38,176.33,29.287]
[1730100101398,0.25098,176.37,176.33,34.9581]
[1730100102391,0.25098,176.38,176.33,49.01123478]
[1730100102582,0.25098,176.37,176.33,49.01123478]
[1730100103188,14.30411478,176.37,176.33,19.8483]
[1730100103379,14.05313478,176.35,176.31,5.6716]
[1730100103769,0.25098,176.35,176.31,19.72473478]
[1730100104280,0.25098,176.35,176.31,14.1795]
[1730100104593,0.25098,176.36,176.31,28.23263478]
[1730100105382,0.25098,176.36,176.32,14.05313478]
[1730100105582,0.25098,176.37,176.32,14.05313478]
[1730100106098,0.25098,176.37,176.33,5.6711]
[1730100106971,19.97401478,176.37,176.32,19.72453478]
[1730100107173,19.97701572,176.37,176.32,5.6714]
[1730100107802,0.25098,176.35,176.31,14.1795]
[1730100107994,0.25098,176.33,176.29,21.5036]
[1730100108173,0.25098,176.33,176.29,35.55973572]
[1730100108998,14.30711572,176.33,176.29,19.8532]
[1730100109196,14.30711572,176.31,176.29,14.1811]
[1730100109692,0.25098,176.31,176.29,14.1811]
[1730100110292,0.25098,176.31,176.27,14.05613572]
[1730100110780,0.25098,176.31,176.28,14.05613572]
[1730100111788,0.25098,176.31,176.28,5.6725]
[1730100111989,0.25098,176.31,176.26,14.1835]
[1730100111990,0.25098,176.31,176.26,19.8566]
[1730100112199,0.25098,176.29,176.26,19.8566]
[1730100113104,14.05613572,176.28,176.23,19.73043572]
[1730100113325,0.25098,176.23,176.2,14.05613572]
[1730100113680,0.25098,176.23,176.21,14.05613572]
[1730100113995,0.25098,176.23,176.2,14.05613572]
[1730100114311,0.25098,176.23,176.21,14.05613572]
[1730100114802,0.25098,176.23,176.18,7.94891437]
[1730100114803,0.25098,176.28,176.22,14.05613572]
[1730100115205,0.25098,176.28,176.24,14.05613572]
[1730100115519,14.05613572,176.31,176.26,14.05613572]
[1730100115685,35.41093572,176.34,176.29,14.05613572]
[1730100116188,5.6709,176.34,176.3,14.05613572]
[1730100116386,19.72703572,176.34,176.29,14.05613572]
[1730100116588,14.05613572,176.35,176.29,28.23723572]
[1730100116797,14.05613572,176.34,176.29,28.23723572]
[1730100117119,5.6705,176.36,176.29,28.23723572]
[1730100117120,14.05613572,176.35,176.29,28.23723572]
[1730100117314,20.06643572,176.37,176.31,14.05613572]
[1730100117606,35.80133572,176.38,176.32,14.05613572]
[1730100117910,35.80133572,176.38,176.32,19.72733572]
[1730100118084,14.05613572,176.37,176.32,14.05613572]
[1730100118584,19.72573572,176.38,176.33,14.05613572]
[1730100119092,19.72573572,176.38,176.32,33.90623572]
[1730100119809,36.46643572,176.42,176.36,14.05613572]
[1730100120007,14.05613572,176.41,176.35,14.05613572]
[1730100120513,14.05613572,176.36,176.32,14.1787]
[1730100120706,14.05613572,176.36,176.32,19.8502]
[1730100120903,14.05613572,176.35,176.32,19.8502]
[1730100121417,0.25098,176.34,176.3,14.05613572]
[1730100121612,0.25098,176.34,176.3,5.6721]
[1730100121913,14.30711572,176.34,176.28,19.72883572]
[1730100122910,14.30711572,176.32,176.27,19.72913572]
[1730100123097,0.25098,176.3,176.27,5.673]
[1730100124199,0.25098,176.3,176.27,19.72913572]
[1730100124400,0.12549,176.34,176.29,14.05613572]
[1730100124610,0.25098,176.34,176.3,14.05613572]
[1730100124809,14.30711572,176.32,176.27,33.91183572]
[1730100124988,0.25098,176.3,176.27,19.8557]
[1730100125310,0.25098,176.3,176.27,14.1827]
[1730100125491,14.05613572,176.29,176.25,5.6734]
[1730100125885,0.25098,176.28,176.25,5.6734]
[1730100126085,0.25098,176.28,176.25,19.72953572]
[1730100126514,0.25098,176.29,176.25,33.91383572]
[1730100127207,0.25098,176.29,176.24,14.05613572]
[1730100127208,19.97981572,176.29,176.24,14.05613572]
[1730100127410,14.30711572,176.25,176.18,5.676]
[1730100127715,0.25098,176.25,176.21,14.05613572]
[1730100128012,5.92468,176.25,176.2,14.05613572]
[1730100128201,5.92468,176.25,176.21,14.05613572]
[1730100128400,5.92468,176.25,176.2,19.73143572]
[1730100129102,0.25098,176.25,176.23,14.05613572]
[1730100129287,20.0,176.29,176.24,14.05613572]
[1730100129619,14.05613572,176.31,176.25,14.05613572]
[1730100130111,14.05613572,176.28,176.23,14.05613572]
[1730100130326,14.05613572,176.29,176.23,14.05613572]
[1730100130924,14.05613572,176.26,176.2,14.05613572]
[1730100131305,0.25098,176.25,176.21,14.05613572]
[1730100131500,14.05613572,176.27,176.22,14.05613572]
[1730100131704,0.25098,176.29,176.24,14.05613572]
[1730100131898,14.30711572,176.29,176.24,14.05613572]
[1730100132111,14.30711572,176.29,176.23,14.05613572]
[1730100132510,14.05613572,176.28,176.23,14.05613572]
[1730100132706,0.25098,176.27,176.22,14.05613572]
[1730100133511,14.05613572,176.27,176.22,14.05613572]
[1730100133708,0.12549,176.26,176.22,14.05613572]
[1730100134004,0.25098,176.26,176.22,19.73073572]
[1730100134209,0.25098,176.26,176.23,14.05613572]
[1730100134410,0.25098,176.27,176.23,14.05613572]
[1730100134829,0.25098,176.27,176.22,33.91753572]
[1730100135017,14.05613572,176.26,176.21,19.73103572]
[1730100135217,0.25098,176.23,176.19,28.24533572]
[1730100135423,0.25098,176.23,176.19,33.92093572]
[1730100136515,5.92548,176.23,176.19,14.1892]
[1730100136826,19.98161572,176.23,176.19,14.1892]
[1730100137037,19.98161572,176.23,176.18,5.6757]
[1730100137223,5.92548,176.23,176.19,14.05613572]
[1730100137734,5.92548,176.23,176.17,30.46173572]
[1730100137735,19.98161572,176.23,176.17,30.46173572]
[1730100138113,19.98161572,176.23,176.18,14.05613572]
[1730100138432,19.98161572,176.23,176.18,19.73203572]
[1730100139732,0.25098,176.23,176.19,14.05613572]
[1730100139919,14.05613572,176.24,176.19,19.73143572]
[1730100140231,14.05613572,176.23,176.19,14.1892]
[1730100140734,14.05613572,176.24,176.19,28.24533572]
[1730100141110,0.25098,176.23,176.19,28.24533572]
[1730100141801,0.25098,176.23,176.19,33.92093572]
[1730100142019,14.30711572,176.2,176.15,5.6767]
[1730100142232,5.92558,176.23,176.13,5.6776]
[1730100142233,0.25098,176.19,176.13,5.6776]
[1730100142408,0.25098,176.17,176.13,5.6776]
[1730100142603,0.25098,176.16,176.13,5.6776]
[1730100143006,14.30711572,176.16,176.1,14.05613572]
[1730100143229,0.25098,176.13,176.1,5.6783]
[1730100144831,0.25098,176.14,176.12,14.05613572]
[1730100145024,0.12549,176.14,176.13,14.05613572]
[1730100145409,14.05613572,176.19,176.13,33.92773572]
[1730100145617,14.05613572,176.19,176.14,14.05613572]
[1730100145914,14.05613572,176.21,176.15,14.05613572]
[1730100146132,14.05613572,176.21,176.16,14.05613572]
[1730100146317,14.05613572,176.22,176.16,14.05613572]
[1730100146513,14.05613572,176.22,176.17,14.05613572]
[1730100146711,14.05613572,176.22,176.16,14.05613572]
[1730100147212,25.92598,176.21,176.16,19.73263572]
[1730100147815,39.98211572,176.21,176.15,19.73303572]
[1730100148010,14.05613572,176.2,176.15,14.05613572]
[1730100148206,0.12549,176.19,176.15,14.05613572]
[1730100148514,0.25098,176.19,176.15,14.05613572]
[1730100149133,0.25098,176.17,176.13,28.25013572]
[1730100149327,0.25098,176.17,176.14,14.05613572]
[1730100149533,0.25098,176.17,176.15,14.05613572]
[1730100149721,0.12549,176.17,176.16,14.05613572]
[1730100150039,39.73063572,176.23,176.16,14.05613572]
[1730100150235,14.05613572,176.22,176.17,14.05613572]
[1730100150439,25.6745,176.23,176.13,19.8716]
[1730100150440,14.05613572,176.21,176.16,14.05613572]
[1730100151233,0.25098,176.2,176.16,14.05613572]
[1730100151837,0.25098,176.2,176.16,19.73263572]
[1730100154548,0.25098,176.2,176.15,14.05613572]
[1730100154754,0.25098,176.2,176.16,14.05613572]
[1730100154958,14.05613572,176.19,176.14,14.05613572]
[1730100155243,0.25098,176.18,176.13,28.25013572]
[1730100155458,14.05613572,176.17,176.13,14.194]
[1730100155758,14.30711572,176.16,176.11,14.05613572]
[1730100156328,14.30711572,176.16,176.1,19.73463572]
[1730100156547,0.25098,176.16,176.13,14.05613572]
[1730100156749,0.12549,176.16,176.15,14.05613572]
[1730100157154,20.0,176.2,176.15,14.05613572]
[1730100157155,0.12549,176.2,176.15,14.05613572]
[1730100157330,0.25098,176.2,176.17,14.05613572]
[1730100158027,0.25098,176.2,176.1,33.93083572]
[1730100158028,0.25098,176.2,176.16,14.05613572]
[1730100158449,20.0,176.23,176.19,14.05613572]
[1730100158630,20.0,176.23,176.19,19.73173572]
[1730100159646,20.0,176.25,176.21,14.05613572]
[1730100159854,19.72943572,176.27,176.19,19.8648]
[1730100160021,19.72943572,176.27,176.22,14.05613572]
[1730100160225,5.6733,176.27,176.22,14.05613572]
[1730100160531,70.1,176.34,176.24,14.05613572]
[1730100160732,14.05613572,176.31,176.25,14.05613572]
[1730100161226,14.05613572,176.3,176.25,14.05613572]
[1730100161428,14.05613572,176.3,176.24,14.05613572]
[1730100161629,5.7711,176.33,176.23,19.73023572]
[1730100161630,19.72853572,176.29,176.23,19.73023572]
[1730100161929,14.30711572,176.28,176.23,19.73023572]
[1730100163156,0.25098,176.28,176.23,19.73023572]
[1730100164454,14.30711572,176.28,176.23,19.73023572]
[1730100164754,0.25098,176.26,176.21,14.05613572]
[1730100164940,14.30711572,176.26,176.2,14.05613572]
[1730100165334,14.05613572,176.25,176.2,14.05613572]
[1730100165553,0.25098,176.24,176.2,14.05613572]
[1730100165854,0.25098,176.24,176.21,5.675]
[1730100166949,0.25098,176.24,176.18,14.1892]
[1730100166950,0.25098,176.24,176.19,19.73143572]
[1730100167140,14.05613572,176.23,176.19,5.6753]
[1730100167343,0.25098,176.22,176.18,14.1892]
[1730100167549,0.25098,176.22,176.18,28.24533572]
[1730100168054,5.92538,176.23,176.18,33.92133572]
[1730100168253,0.25098,176.18,176.12,16.1126]
[1730100168425,0.25098,176.18,176.16,14.05613572]
[1730100168627,0.12549,176.18,176.17,14.05613572]
[1730100168930,20.25098,176.24,176.17,14.05613572]
[1730100169153,20.25098,176.24,176.2,14.05613572]
[1730100169531,14.30711572,176.24,176.19,14.05613572]
[1730100169942,14.30711572,176.24,176.19,19.73163572]
[1730100170136,19.98121572,176.24,176.19,19.73163572]
[1730100170558,0.25098,176.22,176.19,5.6755]
[1730100171227,0.25098,176.22,176.18,28.24593572]
[1730100171228,0.25098,176.2,176.18,19.8658]
[1730100171431,0.25098,176.2,176.15,28.24833572]
[1730100171632,0.25098,176.2,176.19,14.05613572]
[1730100172945,0.25098,176.2,176.19,19.73173572]
[1730100173261,0.25098,176.2,176.19,5.6756]
[1730100173556,0.25098,176.2,176.18,19.8658]
[1730100174535,0.25098,176.2,176.18,33.92193572]
[1730100176072,0.25098,176.2,176.18,19.8658]
[1730100176861,0.25098,176.2,176.19,14.05613572]
[1730100177034,0.25098,176.2,176.19,19.73173572]
[1730100178056,0.25098,176.2,176.19,14.05613572]
[1730100178263,0.25098,176.2,176.18,19.8657]
[1730100178961,0.25098,176.2,176.18,14.05613572]
[1730100179859,0.25098,176.2,176.19,14.05613572]
[1730100180161,0.25098,176.2,176.18,19.73183572]
[1730100180669,0.25098,176.2,176.13,2.2735072]
[1730100180670,34.05613572,176.19,176.13,7.9508072]
[1730100180843,0.25098,176.16,176.13,5.6775]
[1730100181255,14.30711572,176.16,176.12,5.6779]
[1730100182136,0.25098,176.16,176.11,28.25153572]
[1730100182471,0.25098,176.16,176.12,14.05613572]
[1730100182766,0.25098,176.16,176.13,14.05613572]
[1730100183145,0.25098,176.16,176.14,14.05613572]